bitfinex-derivatives/quotes_ETHF0:USTF0_20250804
["timestamp","ask_amount","ask_price","bid_price","bid_amount"]
[1754290391230,2.699,3541.6,3541.5,20.5862]
[1754290391533,2.699,3541.6,3541.5,20.8994]
[1754290391738,2.699,3541.6,3541.5,21.4394]
[1754290392028,1.7464,3541.6,3541.5,21.4394]
[1754290392230,2.31105,3541.8,3541.7,1.0863]
[1754290392531,2.699,3541.8,3541.7,2.5446]
[1754290394232,2.699,3541.8,3541.7,0.7731]
[1754290394633,2.6556,3541.6,3541.5,22.6548]
[1754290394834,2.6556,3541.6,3541.5,23.3929]
[1754290395334,2.6556,3541.4,3541.3,1.9896]
[1754290395538,2.6556,3541.4,3541.3,21.4316]
[1754290395833,2.6556,3541.4,3541.3,21.9972]
[1754290396039,2.6556,3541.4,3541.3,21.4316]
[1754290396335,2.6556,3541.4,3541.3,20.4769]
[1754290396525,2.6556,3541.4,3541.3,0.7381]
[1754290396728,2.6556,3541.4,3541.3,0.3644]
[1754290396935,2.6556,3541.4,3541.3,19.7974]
[1754290397735,2.6556,3541.4,3541.3,20.1711]
[1754290397935,2.6556,3541.4,3541.3,21.4226]
[1754290398437,2.6556,3541.4,3541.3,21.9882]
[1754290398634,2.6556,3541.4,3541.3,21.4226]
[1754290398841,2.6556,3541.4,3541.3,19.7974]
[1754290399234,0.5647,3541.5,3541.1,3.2078]
[1754290399235,1.5558,3541.2,3541.1,3.2078]
[1754290399439,2.6556,3541.2,3541.1,22.6338]
[1754290400340,2.6556,3541.2,3541.1,22.6348]
[1754290400637,2.6556,3541.2,3541.1,3.2078]
[1754290400833,2.6556,3541.1,3541.0,20.8268]
[1754290401037,2.6556,3541.1,3541.0,1.9896]
[1754290402738,2.6556,3541.1,3541.0,0.7381]
[1754290403039,1.41172,3541.6,3540.9,19.426]
[1754290403040,3.22037,3541.0,3540.9,19.426]
[1754290403544,1.33609,3540.9,3540.8,0.3644]
[1754290403741,3.22039,3540.9,3540.8,20.1671]
[1754290403938,2.6556,3540.9,3540.8,20.1661]
[1754290404239,2.6556,3540.9,3540.8,0.7381]
[1754290404434,2.6556,3540.9,3540.8,20.1651]
[1754290404830,2.6556,3540.9,3540.8,21.4166]
[1754290405442,2.6556,3540.9,3540.8,21.9822]
[1754290406938,0.6992,3541.3,3541.2,1.9896]
[1754290407241,2.6556,3541.3,3541.2,2.5552]
[1754290410245,2.1884,3541.3,3541.2,2.5552]
[1754290410542,2.2737,3541.3,3541.2,2.5552]
[1754290410741,4.22168794,3542.2,3541.8,0.56464]
[1754290410939,0.7067,3541.9,3541.8,1.59954]
[1754290411141,0.3173,3541.9,3541.8,1.59954]
[1754290411343,0.76196561,3542.0,3541.9,1.5203]
[1754290411550,2.0944,3542.0,3541.9,2.5552]
[1754290411742,3.41756561,3542.0,3541.9,2.5552]
[1754290412542,3.41756561,3542.0,3541.9,1.9896]
[1754290412742,2.41518561,3542.0,3541.7,0.56465]
[1754290412938,0.7713,3541.6,3541.5,3.2078]
[1754290413148,2.6556,3541.6,3541.5,22.6218]
[1754290413646,1.65327,3541.6,3541.4,19.42]
[1754290413943,2.6556,3541.5,3541.4,21.5852]
[1754290414148,2.6556,3541.5,3541.4,20.4549]
[1754290415046,2.6556,3541.5,3541.4,20.8258]
[1754290415247,2.6556,3541.5,3541.4,20.4589]
[1754290415738,2.6556,3541.5,3541.4,21.4136]
[1754290415943,1.6272,3541.5,3541.4,21.9792]
[1754290416250,2.1884,3541.5,3541.4,21.9792]
[1754290416848,2.6556,3541.5,3541.4,21.9792]
[1754290417048,0.56463,3541.9,3541.8,0.7381]
[1754290417049,1.0886,3541.9,3541.8,0.7381]
[1754290417250,2.6556,3541.9,3541.8,1.9896]
[1754290417549,2.6556,3541.9,3541.8,1.4018]
[1754290417745,2.6556,3541.7,3541.6,3.9459]
[1754290418752,2.6556,3541.7,3541.6,4.2427]
[1754290420249,2.6556,3541.7,3541.6,4.80737]
[1754290420648,2.6556,3541.7,3541.6,5.76207]
[1754290420951,2.6556,3541.7,3541.6,5.1974]
[1754290422054,2.6556,3541.7,3541.6,0.3644]
[1754290422249,0.3894,3541.5,3541.4,20.3787]
[1754290422452,0.3894,3541.5,3541.0,3.2078]
[1754290422453,2.117,3541.2,3541.1,2.25754]
[1754290422655,2.6556,3541.2,3541.1,21.95934]
[1754290422849,1.4817,3541.2,3541.1,22.52494]
[1754290423050,2.6556,3541.5,3541.4,2.5321]
[1754290423256,3.22025,3541.8,3541.7,1.9896]
[1754290423550,3.41764252,3541.8,3541.7,2.5552]
[1754290424051,3.41764252,3541.8,3541.7,1.9896]
[1754290424255,1.0477,3541.5,3541.4,25.1081]
[1754290424453,2.5996,3541.5,3541.4,25.1081]
[1754290424651,2.5996,3541.5,3541.4,22.6138]
[1754290424852,3.2078,3542.0,3541.1,1.9523]
[1754290424853,2.5996,3541.2,3541.1,1.9523]
[1754290425056,1.61245,3541.1,3541.0,3.2078]
[1754290425256,2.5996,3541.1,3541.0,22.6118]
[1754290425456,2.5996,3541.1,3541.0,22.9637]
[1754290425652,2.5996,3541.1,3541.0,3.2078]
[1754290426050,2.5996,3540.7,3540.6,3.2078]
[1754290426253,2.5996,3540.7,3540.6,22.6128]
[1754290426557,2.5996,3540.7,3540.6,3.2078]
[1754290426953,1.0477,3540.5,3540.4,20.1117]
[1754290427154,2.5996,3540.5,3540.4,20.1117]
[1754290427454,2.5996,3540.5,3540.4,21.3583]
[1754290427661,2.5996,3540.5,3540.4,21.8993]
[1754290429163,1.6163,3540.5,3540.4,21.8993]
[1754290429359,1.2476,3540.5,3540.4,21.8993]
[1754290429756,1.6163,3540.5,3540.4,21.8993]
[1754290431061,0.679,3540.6,3540.5,2.51715]
[1754290431367,2.1596,3540.6,3540.5,3.05815]
[1754290432059,2.031,3540.9,3540.8,3.0581]
[1754290432263,0.6659,3541.1,3541.0,0.56476]
[1754290432464,1.2476,3541.1,3541.0,1.57566]
[1754290432962,1.2476,3541.1,3541.0,3.05806]
[1754290433162,1.2476,3541.1,3541.0,2.4933]
[1754290433362,2.5996,3541.1,3541.0,2.4933]
[1754290433764,2.2309,3541.1,3541.0,2.4933]
[1754290433959,2.5996,3541.1,3541.0,2.4933]
[1754290434266,3.16437,3541.1,3540.9,19.402]
[1754290434567,3.16437,3541.1,3540.7,0.9081]
[1754290434568,2.5996,3540.8,3540.7,19.402]
[1754290434769,2.5996,3540.8,3540.7,20.1097]
[1754290434968,2.5996,3540.8,3540.7,20.1107]
[1754290435167,2.5996,3540.8,3540.7,21.3583]
[1754290435469,2.5996,3540.8,3540.7,19.406]
[1754290435860,2.5996,3540.7,3540.6,22.6108]
[1754290436968,2.5996,3540.7,3540.6,22.9627]
[1754290438571,1.0477,3540.4,3540.3,0.9262]
[1754290438871,2.5996,3540.4,3540.3,21.0451]
[1754290439274,2.5996,3540.4,3540.3,21.3513]
[1754290440274,2.5996,3540.4,3540.3,21.8923]
[1754290440975,1.6623,3540.7,3540.6,2.4933]
[1754290441174,2.031,3540.7,3540.6,2.4933]
[1754290441368,2.5996,3540.7,3540.6,2.4933]
[1754290441574,2.5996,3540.7,3540.6,1.9523]
[1754290441969,2.5996,3540.7,3540.6,0.7047]
[1754290442475,2.5996,3540.7,3540.6,0.3519]
[1754290442674,0.94663,3540.6,3540.5,0.3519]
[1754290442875,1.0477,3540.4,3540.3,0.56487]
[1754290443074,0.5686,3540.3,3540.1,3.5749]
[1754290443272,2.5996,3540.2,3540.1,3.2078]
[1754290443967,0.2972,3539.7,3539.6,3.2078]
[1754290444173,2.5996,3539.7,3539.6,3.2078]
[1754290444375,1.0477,3539.5,3539.4,19.392]
[1754290444575,2.5996,3539.5,3539.4,20.0967]
[1754290444870,1.591,3539.2,3539.1,25.12016]
[1754290445073,2.5996,3539.2,3539.1,25.12016]
[1754290445366,2.5996,3539.2,3539.1,25.66116]
[1754290445769,2.5996,3539.2,3539.1,24.5551]
[1754290445977,2.5996,3539.2,3539.1,5.1601]
[1754290446167,2.5996,3539.2,3539.1,24.5531]
[1754290446972,2.5996,3539.2,3539.1,3.9125]
[1754290447173,2.5996,3539.2,3539.1,3.2078]
[1754290448882,2.5996,3538.8,3538.7,3.2078]
[1754290449181,2.5996,3538.8,3538.7,24.2439]
[1754290449379,2.5996,3538.8,3538.7,3.9125]
[1754290449679,1.6163,3538.8,3538.7,5.7011]
[1754290450275,0.679,3538.8,3538.7,5.7011]
[1754290450471,0.9833,3539.0,3538.9,0.3062]
[1754290450677,0.5686,3539.1,3538.9,1.5852]
[1754290450883,0.5686,3539.1,3539.0,2.4933]
[1754290451186,0.5686,3539.1,3539.0,3.05839]
[1754290451187,2.1596,3539.1,3539.0,3.05839]
[1754290451377,2.5996,3539.5,3539.4,3.05832]
[1754290451578,2.5996,3539.8,3539.7,1.76497]
[1754290451774,0.912,3539.8,3539.7,2.11687]
[1754290451981,1.6163,3540.2,3540.1,1.0109]
[1754290452280,42.08097,3540.9,3540.1,1.5519]
[1754290452281,0.44,3540.6,3540.1,1.5519]
[1754290452476,0.679,3540.3,3540.2,1.9523]
[1754290452676,1.2476,3540.3,3540.2,2.4933]
[1754290453180,2.5996,3540.6,3540.5,1.0109]
[1754290453474,1.6163,3540.6,3540.5,5.7011]
[1754290453680,3.2078,3541.4,3540.6,1.9523]
[1754290453681,2.5996,3540.7,3540.6,1.9523]
[1754290453881,2.5996,3540.7,3540.6,0.7047]
[1754290454475,1.033,3540.4,3540.3,1.9851]
[1754290454676,2.6105,3540.4,3540.3,1.9851]
[1754290454881,2.6105,3540.2,3540.1,3.5842]
[1754290455278,2.6105,3540.2,3540.1,4.3147]
[1754290455478,2.6105,3540.2,3540.1,3.9499]
[1754290455679,2.6105,3540.2,3540.1,2.5307]
[1754290456075,0.56484,3540.6,3540.4,0.3016]
[1754290456076,0.8682,3540.5,3540.4,0.3016]
[1754290456280,2.1412,3540.8,3540.7,2.532]
[1754290456785,4.8981,3541.0,3540.9,1.0437]
[1754290456984,4.2408,3541.4,3541.3,1.0437]
[1754290457181,1.5822,3541.2,3540.8,0.56479]
[1754290457385,1.033,3541.0,3540.9,1.1082]
[1754290457687,2.6105,3541.0,3540.9,1.979]
[1754290458192,2.6105,3541.0,3540.9,2.532]
[1754290459386,3.17527,3541.0,3540.9,1.0437]
[1754290459585,2.6105,3541.0,3540.9,1.6774]
[1754290459787,2.6105,3541.0,3540.9,1.979]
[1754290460580,0.3528,3540.8,3540.7,0.7425]
[1754290460785,2.6105,3540.8,3540.7,1.6774]
[1754290461585,2.6105,3540.8,3540.7,1.979]
[1754290461982,2.1412,3540.8,3540.7,2.532]
[1754290463192,2.6105,3540.8,3540.7,2.532]
[1754290463586,1.592,3540.6,3540.4,0.56486]
[1754290463790,2.6105,3540.5,3540.4,2.54386]
[1754290463993,2.6105,3540.5,3540.4,2.532]
[1754290464300,2.6105,3540.5,3540.4,1.979]
[1754290464695,2.0515,3540.2,3540.1,2.532]
[1754290464903,1.033,3539.9,3539.8,1.6774]
[1754290465199,2.6105,3539.9,3539.8,1.6774]
[1754290465401,2.6105,3539.9,3539.8,1.979]
[1754290466000,3.17546,3539.9,3539.7,3.2078]
[1754290466201,2.6105,3539.8,3539.7,3.9499]
[1754290466498,2.6105,3539.8,3539.7,5.1868]
[1754290467800,2.6105,3539.8,3539.7,3.5735]
[1754290468005,2.6105,3539.8,3539.7,3.5842]
[1754290468195,2.6105,3539.8,3539.7,3.9499]
[1754290469202,2.0515,3540.2,3540.1,2.532]
[1754290469697,2.6105,3540.2,3540.1,1.979]
[1754290470902,2.6105,3540.2,3540.1,2.54391]
[1754290471104,2.6105,3540.2,3540.1,1.979]
[1754290473608,1.033,3539.9,3539.8,1.979]
[1754290473806,2.6105,3539.9,3539.8,2.54396]
[1754290474507,2.6105,3539.8,3539.7,3.2078]
[1754290474706,2.6105,3539.8,3539.7,3.5842]
[1754290474901,2.6105,3539.8,3539.7,4.2515]
[1754290475207,2.6105,3539.8,3539.7,5.1868]
[1754290475404,2.6105,3539.8,3539.7,3.5735]
[1754290475606,2.6105,3539.8,3539.7,3.2078]
[1754290476802,2.6105,3539.8,3539.7,3.9499]
[1754290477107,2.6105,3539.8,3539.7,5.1868]
[1754290477309,2.6105,3539.8,3539.7,4.2515]
[1754290477505,2.6105,3539.8,3539.7,3.2078]
[1754290477806,2.6105,3539.4,3539.3,3.2078]
[1754290480301,2.6105,3539.4,3539.3,3.5842]
[1754290480702,2.6105,3539.4,3539.3,3.2078]
[1754290481204,2.6105,3539.4,3539.3,3.9499]
[1754290481404,2.6105,3539.4,3539.3,5.7398]
[1754290481605,2.0613,3539.4,3539.3,5.7398]
[1754290482105,2.6105,3539.4,3539.3,5.7398]
[1754290482409,2.1412,3539.4,3539.3,5.7398]
[1754290483310,0.662,3539.4,3539.3,5.7398]
[1754290483607,2.6105,3539.7,3539.6,1.979]
[1754290485502,2.6105,3539.7,3539.6,2.5262]
[1754290486607,2.6105,3539.7,3539.6,1.979]
[1754290487008,2.6105,3539.7,3539.6,0.7421]
[1754290487210,2.5549,3539.4,3539.3,3.2078]
[1754290488115,2.5549,3539.0,3538.9,0.7312]
[1754290488811,2.5549,3539.0,3538.9,1.9495]
[1754290489609,2.5549,3538.9,3538.8,3.2078]
[1754290489809,2.5549,3538.9,3538.8,5.1573]
[1754290490516,2.5549,3538.9,3538.8,5.7045]
[1754290491011,0.56512,3538.8,3538.3,3.2078]
[1754290491213,1.2479,3538.4,3538.3,5.3745]
[1754290491417,1.799,3538.4,3538.3,5.9035]
[1754290492516,1.2479,3538.7,3538.6,0.7312]
[1754290492717,1.2479,3538.7,3538.6,1.84355]
[1754290492914,1.799,3538.7,3538.6,1.82535]
[1754290493917,2.1092,3538.7,3538.6,2.14845]
[1754290494118,2.5549,3538.7,3538.6,2.51465]
[1754290494719,2.5549,3538.7,3538.6,3.06185]
[1754290495415,2.5549,3538.7,3538.6,2.51465]
[1754290496315,2.5549,3538.7,3538.6,0.7312]
[1754290496514,1.509,3538.6,3538.4,0.56518]
[1754290496718,5.19115911,3538.5,3538.4,0.56518]
[1754290497217,5.19115911,3538.5,3538.4,1.61948]
[1754290497415,2.5549,3538.0,3537.9,1.01753841]
[1754290497617,2.5549,3538.0,3537.4,3.2078]
[1754290497618,2.5549,3537.5,3537.4,3.9007]
[1754290497813,3.68215911,3537.5,3537.1,0.5472]
[1754290498013,1.0459,3537.3,3537.2,1.0591]
[1754290498209,2.5549,3537.3,3537.2,1.4205]
[1754290498411,2.5549,3537.3,3537.2,2.51487]
[1754290498609,2.5549,3537.3,3537.2,1.9495]
[1754290498813,2.5549,3537.3,3537.2,1.0543]
[1754290499015,2.78390366,3537.3,3537.2,1.0543]
[1754290499325,2.5549,3537.2,3537.1,1.29657]
[1754290499620,2.5549,3537.2,3537.1,2.51487]
[1754290499821,2.5549,3537.2,3537.1,3.06207]
[1754290500016,2.5549,3537.2,3537.1,2.51487]
[1754290500720,2.5549,3537.2,3537.1,1.4205]
[1754290500917,2.5549,3537.2,3537.1,0.3698]
[1754290501623,2.5549,3537.2,3537.1,1.9495]
[1754290501821,2.5549,3537.2,3537.1,1.4205]
[1754290502025,2.5549,3537.2,3537.1,0.7312]
[1754290503824,2.5549,3537.2,3537.1,1.9495]
[1754290507128,2.5549,3537.2,3537.1,2.4967]
[1754290508227,2.5549,3537.1,3537.0,2.5149]
[1754290508424,2.5549,3537.1,3537.0,3.0621]
[1754290510523,2.5549,3537.1,3537.0,2.5149]
[1754290510924,2.0427,3537.4,3537.3,0.56534]
[1754290511128,2.0427,3537.4,3537.3,0.93514]
[1754290511129,2.5549,3537.4,3537.3,0.93514]
[1754290512428,2.5549,3537.4,3537.3,2.19174]
[1754290512624,2.5549,3537.4,3537.3,2.51484]
[1754290512825,1.5581,3537.4,3537.3,2.51484]
[1754290513025,1.5581,3537.4,3537.3,3.06204]
[1754290513932,2.5798,3537.4,3537.3,3.06204]
[1754290514828,2.5798,3537.4,3537.3,3.10050128]
[1754290518634,5.21740937,3537.4,3537.3,3.10050128]
[1754290518938,5.21740937,3537.4,3537.3,2.55330128]
[1754290519338,5.21740937,3537.4,3537.3,3.08460128]
[1754290521934,2.5798,3537.4,3537.3,3.08460128]
[1754290522536,5.21740937,3537.4,3537.3,3.08460128]
[1754290524133,5.98483676,3537.4,3537.3,3.08460128]
[1754290525945,5.21740937,3537.4,3537.3,3.08460128]
[1754290526134,0.22898836,3537.9,3537.8,3.02858]
[1754290526444,2.8250553,3537.9,3537.8,3.02858]
[1754290526642,3.43510792,3537.9,3537.8,3.02858]
[1754290526842,3.43510792,3537.9,3537.8,3.06704128]
[1754290527237,4.44899586,3537.9,3537.8,3.06704128]
[1754290528046,3.66171298,3537.9,3537.8,3.06704128]
[1754290528247,3.52196036,3537.9,3537.8,3.06704128]
[1754290530341,2.2736553,3537.9,3537.8,3.06704128]
[1754290530946,3.2953553,3537.9,3537.8,3.06704128]
[1754290532544,3.52188215,3537.9,3537.8,3.06704128]
[1754290534049,2.75312685,3537.9,3537.8,3.06704128]
[1754290534747,3.52207576,3537.9,3537.8,3.06704128]
[1754290535047,3.52207576,3537.9,3537.8,2.53574128]
[1754290535448,3.52207576,3537.9,3537.8,3.06704128]
[1754290536047,2.75312685,3537.9,3537.8,3.06704128]
[1754290536548,3.52197423,3537.9,3537.8,0.60374128]
[1754290537038,3.52197423,3537.9,3537.8,0.96824128]
[1754290537241,3.52197423,3537.9,3537.8,2.21514128]
[1754290538648,3.52197423,3537.9,3537.8,2.53684128]
[1754290538951,3.52197423,3537.9,3537.8,3.06814128]
[1754290540149,3.16937423,3537.9,3537.8,3.06814128]
[1754290540354,2.94284738,3537.9,3537.8,3.06814128]
[1754290540846,3.29544738,3537.9,3537.8,3.06814128]
[1754290541951,2.5266,3537.9,3537.8,3.06814128]
[1754290544750,2.63760937,3538.1,3538.0,2.44055]
[1754290545050,5.91486519,3538.1,3538.0,2.96415]
[1754290545246,0.5138,3538.5,3538.4,0.56518]
[1754290545450,2.76911058,3538.5,3538.4,2.96408]
[1754290545748,0.76881058,3538.5,3538.4,2.96408]
[1754290545950,2.29451058,3538.8,3538.7,1.57973]
[1754290546148,2.29451058,3538.8,3538.7,2.96403]
[1754290546347,2.80271058,3538.8,3538.7,2.96403]
[1754290546554,3.27731058,3538.8,3538.7,2.96403]
[1754290546853,1.1665,3538.3,3538.2,3.77301]
[1754290547052,5.14610937,3538.3,3538.2,3.77301]
[1754290548955,5.14610937,3538.3,3538.2,3.2078]
[1754290549455,1.9947,3537.8,3537.7,6.17199]
[1754290549652,2.5085,3537.8,3537.7,6.17199]
[1754290556358,2.5085,3537.8,3537.7,3.2078]
[1754290556557,2.5085,3537.5,3537.3,43.9098]
[1754290556861,3.2078,3538.2,3537.3,4.2948]
[1754290556862,2.5085,3537.4,3537.3,4.2948]
[1754290557054,2.5085,3537.4,3537.3,4.7892]
[1754290557659,2.5085,3537.4,3537.3,5.64845]
[1754290558850,3.07384,3537.4,3537.3,5.0831]
[1754290559056,2.5085,3537.2,3537.0,19.9434]
[1754290559256,2.5085,3537.1,3537.0,21.3244]
[1754290559458,2.5085,3537.1,3537.0,2.4408]
[1754290559960,1.0119,3536.9,3536.8,5.35473]
[1754290560156,2.5085,3536.9,3536.8,6.17223]
[1754290560959,0.5082,3537.6,3537.4,0.56534]
[1754290561156,0.76946602,3537.7,3537.6,2.96431]
[1754290561362,1.27766602,3537.9,3537.8,2.96428]
[1754290561660,1.8292,3537.9,3537.8,2.96428]
[1754290561852,3.27796602,3537.9,3537.8,2.96428]
[1754290562668,1.27766602,3537.9,3537.8,2.96428]
[1754290562862,0.5082,3537.9,3537.8,2.96428]
[1754290563762,0.76946602,3537.9,3537.8,2.96428]
[1754290564161,1.79146602,3538.0,3537.9,1.3844]
[1754290564366,2.91876602,3538.0,3537.9,2.399]
[1754290564566,3.27796602,3538.0,3537.9,2.399]
[1754290564866,1.4966,3537.8,3537.7,0.56528]
[1754290565071,2.5085,3537.8,3537.7,0.56528]
[1754290565568,2.5085,3537.8,3537.7,0.93048]
[1754290565764,2.5085,3537.8,3537.7,2.14678]
[1754290566163,1.5201,3538.1,3538.0,0.56524]
[1754290566466,0.7693316,3538.1,3538.0,1.57984]
[1754290566664,1.4220316,3538.4,3538.3,1.5798]
[1754290566868,2.64831715,3538.4,3538.3,2.9642]
[1754290567169,3.41764875,3538.4,3538.3,2.9642]
[1754290567972,3.2778316,3538.4,3538.3,2.9642]
[1754290568863,1.0119,3538.1,3538.0,0.56524]
[1754290569067,5.14610937,3538.1,3538.0,0.56524]
[1754290569465,2.5085,3538.1,3538.0,2.44064]
[1754290569761,5.91555956,3538.1,3538.0,0.93044]
[1754290569966,4.41895956,3538.1,3537.9,3.77305]
[1754290570170,2.5085,3538.0,3537.9,3.2078]
[1754290570463,2.5085,3538.0,3537.5,3.2078]
[1754290570464,0.56526,3537.9,3537.5,3.2078]
[1754290570669,2.5085,3537.6,3537.5,5.64852]
[1754290570862,2.5085,3537.6,3537.5,6.17212]
[1754290571063,1.5201,3537.6,3537.5,6.17212]
[1754290571368,2.5085,3537.6,3537.5,6.17212]
[1754290571561,2.0003,3537.9,3537.8,0.56528]
[1754290571770,2.5085,3537.9,3537.8,2.44068]
[1754290572369,1.0119,3537.6,3537.5,3.77312]
[1754290572567,5.14610937,3537.6,3537.5,3.77312]
[1754290573967,5.14610937,3537.6,3537.5,3.2078]
[1754290575067,1.0005,3537.3,3537.2,0.56536]
[1754290575266,2.5268,3537.3,3537.2,0.56536]
[1754290576366,5.16440937,3537.3,3537.2,0.56536]
[1754290579472,5.16440937,3537.3,3537.2,2.15156]
[1754290579673,5.16440937,3537.3,3537.2,2.44826]
[1754290580467,2.5268,3537.3,3537.2,2.44826]
[1754290580667,2.5268,3537.3,3537.2,2.97576]
[1754290583077,2.5268,3537.3,3537.2,2.44826]
[1754290583378,2.5268,3537.3,3537.2,2.97576]
[1754290583775,5.16440937,3537.6,3537.5,2.44822]
[1754290583974,5.93820123,3537.6,3537.5,2.4104]
[1754290584278,5.93820123,3537.6,3537.5,1.8829]
[1754290585280,3.30059186,3537.6,3537.5,2.4104]
[1754290587693,0.77379186,3537.6,3537.5,2.4104]
[1754290587988,3.30059186,3538.0,3537.9,2.97566]
[1754290588183,3.44040835,3538.0,3537.9,2.97566]
[1754290588485,0.91360835,3538.0,3537.9,2.97566]
[1754290588880,1.44250835,3538.0,3537.9,2.97566]
[1754290589086,1.78500835,3538.0,3537.9,2.97566]
[1754290589287,3.44040835,3538.0,3537.9,2.97566]
[1754290590481,2.78239186,3538.0,3537.9,2.97566]
[1754290590686,2.30319186,3538.0,3537.9,2.97566]
[1754290591083,1.5294,3538.0,3537.9,6.18346]
[1754290591481,2.30380563,3538.0,3537.9,6.18346]
[1754290591678,2.78300563,3538.0,3537.9,6.18346]
[1754290591989,3.30120563,3538.0,3537.9,2.97566]
[1754290592377,2.30380563,3538.0,3537.9,2.97566]
[1754290592578,0.77440563,3538.0,3537.9,2.97566]
[1754290592779,1.30330563,3538.2,3538.1,2.97563]
[1754290592978,0.5289,3538.2,3538.1,2.97563]
[1754290594096,0.8714,3538.2,3538.1,2.97563]
[1754290594284,2.5268,3538.2,3538.1,2.97563]
[1754290594487,3.30120563,3538.2,3538.1,2.97563]
[1754290595292,2.30380563,3538.2,3538.1,2.97563]
[1754290595491,1.5294,3538.2,3538.1,2.97563]
[1754290597085,2.5268,3538.2,3538.1,2.97563]
[1754290597690,2.5268,3538.2,3538.1,2.44813]
[1754290598192,3.3008406,3538.2,3538.1,0.56523]
[1754290598387,2.5268,3538.2,3538.1,0.56523]
[1754290598585,3.30082555,3538.2,3538.1,0.56523]
[1754290598990,3.30082555,3538.2,3538.1,0.91703]
[1754290599390,3.30082555,3538.2,3538.1,2.15123]
[1754290599790,1.43152555,3538.2,3538.1,2.97543]
[1754290599990,2.1838,3538.2,3538.1,2.97543]
[1754290600192,2.5268,3538.2,3538.1,2.97543]
[1754290604494,0.5289,3538.2,3538.1,2.97543]
[1754290604689,1.6275,3538.2,3538.1,2.97543]
[1754290604894,0.4409,3538.5,3538.1,2.97543]
[1754290605092,2.4038,3538.5,3538.4,2.93978]
[1754290605287,0.77363784,3538.5,3538.4,6.14758]
[1754290605488,1.5826,3539.1,3539.0,2.08358]
[1754290605689,2.67508743,3539.1,3539.0,2.93968]
[1754290605993,3.17738743,3539.1,3539.0,2.93968]
[1754290606392,3.17738743,3539.1,3539.0,2.43348]
[1754290606598,2.4038,3539.1,3539.0,2.43348]
[1754290606794,2.4038,3539.1,3539.0,2.93968]
[1754290607885,1.4789,3539.1,3539.0,2.93968]
[1754290608489,1.16,3539.1,3539.0,2.93968]
[1754290608692,2.4038,3539.1,3539.0,2.93968]
[1754290608892,4.6684,3539.3,3539.2,1.54175]
[1754290609094,5.6116,3539.3,3539.2,2.43345]
[1754290609794,0.9432,3539.2,3539.0,0.93117]
[1754290609994,2.4038,3539.1,3539.0,1.58557]
[1754290610192,2.4038,3539.1,3539.0,0.56507]
[1754290611104,2.4038,3538.9,3538.8,3.7729]
[1754290611301,5.04140937,3538.9,3538.8,3.7729]
[1754290611490,5.04140937,3538.9,3538.8,0.5651]
[1754290612002,2.4038,3538.6,3538.5,0.56516]
[1754290612694,5.04140937,3538.6,3538.4,3.77298]
[1754290612899,2.0849,3538.5,3538.4,3.77298]
[1754290613092,2.96896,3538.5,3538.4,3.2078]
[1754290613293,0.56518,3538.4,3538.1,0.56522]
[1754290613495,2.4038,3538.2,3538.1,0.56522]
[1754290613694,0.9432,3538.1,3537.9,0.56525]
[1754290613901,5.04140937,3538.0,3537.9,1.74525]
[1754290614113,2.4038,3538.0,3537.9,1.18]
[1754290614793,2.4038,3538.0,3537.9,1.8684]
[1754290615104,2.4038,3538.0,3537.9,2.3746]
[1754290615105,0.9432,3538.0,3537.9,2.3746]
[1754290615304,2.4038,3538.3,3538.2,0.9767]
[1754290615594,2.4038,3538.3,3538.2,2.3746]
[1754290616205,2.4038,3538.3,3538.2,1.8684]
[1754290617105,2.4038,3538.3,3538.2,2.43361]
[1754290617700,2.4038,3538.3,3538.2,1.8684]
[1754290617905,5.04140937,3538.3,3538.1,0.56522]
[1754290618095,2.4038,3538.2,3538.1,0.56522]
[1754290618501,0.9766,3538.2,3538.0,0.56523]
[1754290618700,2.4038,3538.1,3538.0,2.11133]
[1754290618900,2.4038,3538.1,3538.0,2.43363]
[1754290619105,2.4038,3538.1,3538.0,2.93983]
[1754290620803,1.9198,3538.1,3538.0,2.93983]
[1754290621010,1.6009,3538.1,3538.0,2.93983]
[1754290621310,1.16,3538.1,3538.0,2.93983]
[1754290621502,0.484,3538.4,3538.0,2.26921]
[1754290621703,0.6577,3538.6,3538.5,0.89566]
[1754290622010,2.4038,3538.6,3538.5,2.93976]
[1754290622411,1.16,3538.6,3538.5,2.93976]
[1754290622912,2.4038,3538.6,3538.5,2.93976]
[1754290623606,2.4038,3538.6,3538.5,2.43356]
[1754290624207,2.4038,3538.6,3538.5,2.93976]
[1754290624402,3.2078,3539.3,3538.6,1.77897]
[1754290624713,2.07428283,3539.2,3539.1,2.93967]
[1754290624908,2.51518283,3539.2,3539.1,2.93967]
[1754290625117,2.37451464,3539.2,3539.1,2.93967]
[1754290627712,2.69341464,3539.2,3539.1,2.93967]
[1754290627917,2.4038,3539.2,3539.1,2.43347]
[1754290628112,2.4038,3539.2,3539.1,1.74507]
[1754290628714,2.4038,3539.2,3539.1,0.89557]
[1754290629814,2.4038,3539.2,3539.1,2.43347]
[1754290630116,2.4038,3539.2,3539.1,2.93967]
[1754290632020,2.4038,3539.2,3539.1,2.43347]
[1754290635718,2.4038,3539.2,3539.1,2.94897]
[1754290636620,2.4038,3539.2,3539.1,2.09937]
[1754290637419,2.4038,3539.2,3539.1,2.40397]
[1754290637616,2.4038,3539.2,3539.1,2.91947]
[1754290640523,1.6009,3539.2,3539.1,2.91947]
[1754290641220,3.2078,3539.8,3539.1,2.91947]
[1754290641221,1.1802,3539.8,3539.7,1.72207]